bitfinex-derivatives/quotes_SOLF0:USTF0_20240912
["timestamp","ask_amount","ask_price","bid_price","bid_amount"]
[1726150750129,17.67,135.94,135.86,491.69073644]
[1726150750291,21.31973947,135.94,135.86,488.37823644]
[1726150750643,17.67,135.92,135.86,488.37823644]
[1726150751493,3.77007215,135.95,135.86,506.04823644]
[1726150751798,3.311,135.93,135.87,1.5833]
[1726150752010,17.67,135.96,135.87,1.5833]
[1726150752202,21.28728114,135.96,135.87,1.5833]
[1726150752897,17.67,135.94,135.87,1.5833]
[1726150753102,3.3117,135.91,135.87,1.5833]
[1726150753324,21.26519087,135.94,135.87,1.5833]
[1726150754205,3.312,135.89,135.87,1.5833]
[1726150754420,3.312,135.89,135.86,488.37823644]
[1726150754806,3.3124,135.88,135.86,488.37823644]
[1726150755005,17.67,135.92,135.86,488.37823644]
[1726150755609,17.67,135.96,135.86,506.04823644]
[1726150755817,250.18,136.02,135.86,506.04823644]
[1726150756026,17.67,135.97,135.86,506.04823644]
[1726150756215,21.41182161,135.97,135.86,506.04823644]
[1726150756449,17.67,135.95,135.86,506.04823644]
[1726150756614,17.67,135.95,135.86,488.37823644]
[1726150756805,3.3122,135.89,135.86,488.37823644]
[1726150757106,17.67,135.93,135.86,488.37823644]
[1726150757347,3.3118,135.9,135.86,491.69093644]
[1726150757509,17.67,135.93,135.86,488.37823644]
[1726150757510,3.72304439,135.93,135.86,488.37823644]
[1726150757702,17.67,135.95,135.86,488.37823644]
[1726150758011,3.3114,135.92,135.87,3.3122]
[1726150758415,3.3119,135.9,135.86,488.37823644]
[1726150758606,3.6702223,135.93,135.86,488.37823644]
[1726150758811,28.29,135.94,135.86,488.37823644]
[1726150759125,3.3121,135.89,135.86,488.37823644]
[1726150760008,3.72249628,135.93,135.86,488.37823644]
[1726150760197,28.29,135.94,135.86,488.37823644]
[1726150760597,31.92193713,135.94,135.86,488.37823644]
[1726150760814,28.29,135.92,135.86,488.37823644]
[1726150761808,3.3124,135.87,135.86,488.37823644]
[1726150764216,7.00661236,135.87,135.86,488.37823644]
[1726150764508,3.3127,135.86,135.85,5.0]
[1726150768310,7.04484516,135.86,135.85,5.0]
[1726150768510,3.3127,135.86,135.85,5.0]
[1726150768711,7.07136129,135.86,135.85,5.0]
[1726150768913,3.3127,135.86,135.85,5.0]
[1726150776628,7.00229301,135.87,135.85,5.0]
[1726150776944,3.68979301,135.87,135.85,5.0]
[1726150777127,3.3126,135.87,135.85,5.0]
[1726150777338,3.70241203,135.87,135.85,5.0]
[1726150777526,28.29,135.89,135.85,5.0]
[1726150777825,3.3127,135.86,135.85,5.0]
[1726150778029,6.92893234,135.86,135.85,5.0]
[1726150778227,3.3127,135.86,135.85,5.0]
[1726150778831,6.93482497,135.86,135.85,5.0]
[1726150779024,3.3127,135.86,135.85,5.0]
[1726150780231,3.67331718,135.87,135.85,5.0]
[1726150780433,17.67,135.89,135.85,5.0]
[1726150780817,3.3127,135.86,135.85,5.0]
[1726150781031,3.63193713,135.94,135.85,5.0]
[1726150781243,17.67,135.94,135.85,5.0]
[1726150781539,17.67,135.92,135.85,5.0]
[1726150781718,17.67,135.9,135.85,5.0]
[1726150783639,3.3126,135.87,135.85,5.0]
[1726150783833,6.91826244,135.87,135.85,5.0]
[1726150784132,3.3127,135.86,135.85,5.0]
[1726150784336,3.60566244,135.87,135.85,5.0]
[1726150785434,6.91826244,135.87,135.85,5.0]
[1726150785637,3.60566244,135.87,135.85,5.0]
[1726150786521,3.3127,135.86,135.85,5.0]
[1726150787126,6.91816244,135.87,135.85,5.0]
[1726150787739,3.3127,135.86,135.85,5.0]
[1726150789373,6.91816244,135.87,135.85,5.0]
[1726150789940,3.3127,135.86,135.85,5.0]
[1726150790351,20.9824,135.88,135.85,5.0]
[1726150790548,3.59855445,135.87,135.85,5.0]
[1726150791044,6.91115445,135.87,135.85,5.0]
[1726150792548,3.3126,135.87,135.85,5.0]
[1726150792940,6.99991217,135.87,135.85,5.0]
[1726150793153,3.3126,135.87,135.85,5.0]
[1726150793643,7.05514963,135.87,135.85,5.0]
[1726150793839,3.3127,135.86,135.85,5.0]
[1726150795342,20.9827,135.86,135.85,5.0]
[1726150795549,3.3127,135.86,135.85,5.0]
[1726150795736,20.9827,135.86,135.85,5.0]
[1726150798045,3.3131,135.85,135.82,10.0]
[1726150798645,17.67,135.86,135.82,10.0]
[1726150799346,3.3131,135.85,135.82,10.0]
[1726150800140,3.3132,135.84,135.82,10.0]
[1726150800351,17.67,135.84,135.81,1.633]
[1726150800844,17.67,135.82,135.79,1.3865]
[1726150801243,20.9836,135.83,135.79,1.3865]
[1726150801459,17.67,135.83,135.8,1.3686]
[1726150801853,17.67,135.86,135.8,1.3686]
[1726150802546,17.67,135.88,135.8,1.3686]
[1726150803049,17.67,135.86,135.8,1.3686]
[1726150803244,21.33612484,135.86,135.8,1.3686]
[1726150803557,17.67,135.89,135.8,1.3686]
[1726150804056,17.67,135.89,135.82,3.3136]
[1726150804272,17.67,135.87,135.8,1.3686]
[1726150804462,3.3129,135.85,135.8,4.6827]
[1726150804647,17.67,135.85,135.8,1.3686]
[1726150804961,17.67,135.82,135.8,1.3686]
[1726150805186,3.3139,135.81,135.8,1.3686]
[1726150805349,3.3139,135.81,135.79,2.7023]
[1726150805350,3.73868126,135.81,135.79,1.3865]
[1726150805656,7.05278126,135.81,135.79,1.3865]
[1726150805961,17.67,135.82,135.79,1.3865]
[1726150806449,3.63615786,135.81,135.79,1.3865]
[1726150806657,17.67,135.82,135.79,1.3865]
[1726150806959,17.67,135.87,135.79,1.3865]
[1726150806960,17.67,135.83,135.79,1.3865]
[1726150807146,17.67,135.85,135.79,1.3865]
[1726150807448,17.67,135.85,135.8,1.2912]
[1726150808175,21.35589758,135.87,135.8,1.2912]
[1726150808176,17.67,135.87,135.8,1.2912]
[1726150808459,20.9821,135.89,135.83,3.3133]
[1726150808643,17.67,135.89,135.8,1.2912]
[1726150809052,3.3122,135.88,135.83,3.3134]
[1726150809252,17.67,135.89,135.84,1.3014]
[1726150811845,0.605,135.96,135.84,1.3014]
[1726150811846,17.67,135.91,135.84,1.3014]
[1726150812454,3.72008623,135.9,135.84,1.3014]
[1726150812651,17.67,135.91,135.84,1.3014]
[1726150812852,3.3114,135.92,135.87,3.3123]
[1726150813162,17.67,135.93,135.88,1.3352]
[1726150813664,3.73086384,135.92,135.88,1.3352]
[1726150813850,17.67,135.91,135.84,1.3014]
[1726150814058,3.3125,135.87,135.84,1.3014]
[1726150814549,17.67,135.89,135.84,1.3014]
[1726150815152,3.3122,135.88,135.84,1.3014]
[1726150815361,17.67,135.91,135.84,1.3014]
[1726150815672,3.3124,135.88,135.84,1.3014]
[1726150816052,21.43879484,135.91,135.84,1.3014]
[1726150816443,3.3127,135.86,135.84,1.3014]
[1726150817055,3.3129,135.85,135.84,1.3014]
[1726150817305,17.67,135.85,135.8,2.7054]
[1726150817447,3.66614965,135.84,135.8,2.7054]
[1726150817651,17.67,135.85,135.8,1.4142]
[1726150817948,17.67,135.85,135.76,6.26466547]
[1726150817949,17.67,135.83,135.76,1.3244]
[1726150818154,21.32915389,135.83,135.76,1.3244]
[1726150818469,3.3143,135.8,135.76,1.3244]
[1726150818681,17.67,135.8,135.76,1.3244]
[1726150819349,3.3146,135.79,135.76,1.3244]
[1726150820179,17.67,135.85,135.78,3.3146]
[1726150820362,17.67,135.85,135.76,1.3244]
[1726150820363,3.76594864,135.84,135.76,1.3244]
[1726150820572,7.07924864,135.84,135.77,1.3001]
[1726150820771,3.76594864,135.84,135.79,3.3142]
[1726150821061,3.76594864,135.84,135.77,1.3001]
[1726150821062,17.67,135.82,135.77,1.3001]
[1726150822963,17.67,135.8,135.74,1.4142]
[1726150823655,21.39826845,135.8,135.74,1.4142]
[1726150824458,3.3148,135.78,135.74,1.4142]
[1726150825160,21.39826845,135.8,135.74,1.4142]
[1726150826462,3.3154,135.76,135.74,1.4142]
[1726150826794,3.3149,135.77,135.74,1.4142]
[1726150827252,3.3149,135.77,135.72,1.3207]
[1726150827253,17.67,135.76,135.72,1.3207]
[1726150827450,3.3156,135.75,135.72,1.3207]
[1726150827666,3.3156,135.75,135.71,1.4024]
[1726150827881,17.67,135.76,135.71,1.4024]
[1726150828671,17.67,135.76,135.7,3.3165]
[1726150829169,17.67,135.78,135.73,3.3158]
[1726150829467,3.72706243,135.78,135.73,3.3158]
[1726150829671,3.315,135.77,135.72,3.3159]
[1726150830069,17.67,135.8,135.69,7.57111933]
[1726150830274,3.3147,135.78,135.73,3.3159]
[1726150830510,3.59511144,135.79,135.71,6.27701439]
[1726150830691,3.59511144,135.79,135.69,12.7941762]
[1726150830973,3.315,135.77,135.7,6.27591004]
[1726150831171,17.67,135.82,135.71,23.94591004]
[1726150831367,3.3146,135.79,135.72,10.04284942]
[1726150831557,3.3146,135.79,135.73,1.4038]
[1726150831861,21.27506305,135.82,135.77,3.3147]
[1726150831862,3.314,135.81,135.77,3.3147]
[1726150832072,3.60506305,135.82,135.73,19.0738]
[1726150832267,22.786,135.9,135.8,3.3141]
[1726150832268,3.3131,135.85,135.8,3.3141]
[1726150832769,17.67,135.86,135.78,2.8028]
[1726150832965,3.3136,135.83,135.78,2.8028]
[1726150833161,17.67,135.86,135.78,2.8028]
[1726150833162,0.606,135.9,135.78,2.8028]
[1726150833358,3.76879484,135.91,135.81,17.67]
[1726150833359,3.312,135.89,135.81,17.67]
[1726150833561,3.312,135.89,135.81,21.37247749]
[1726150833967,17.67,135.92,135.84,3.313]
[1726150833968,3.3123,135.88,135.84,3.313]
[1726150834160,3.65973817,135.91,135.81,17.67]
[1726150834365,17.67,135.9,135.81,17.67]
[1726150834568,17.67,135.9,135.82,3.3134]
[1726150834967,3.67816029,135.89,135.79,1.4038]
[1726150835167,3.3129,135.86,135.81,3.3137]
[1726150835599,17.67,135.9,135.82,3.3135]
[1726150835780,3.3126,135.87,135.82,3.3135]
[1726150835963,3.3126,135.87,135.79,5.04949924]
[1726150836171,17.67,135.9,135.81,17.67]
[1726150836565,3.3124,135.88,135.81,17.67]
[1726150836797,3.3124,135.88,135.83,3.3134]
[1726150837668,17.67,135.9,135.83,3.3134]
[1726150837868,17.67,135.9,135.82,3.3136]
[1726150838075,3.3126,135.87,135.82,3.3136]
[1726150838271,3.3126,135.87,135.81,17.67]
[1726150838467,17.67,135.9,135.81,17.67]
[1726150838786,3.67388182,135.89,135.81,17.67]
[1726150838972,4.38386596,135.96,135.82,3.3136]
[1726150839208,17.67,135.89,135.82,3.3136]
[1726150839368,3.59729659,135.88,135.82,3.3136]
[1726150839567,3.3126,135.87,135.82,3.3136]
[1726150840073,3.3127,135.86,135.82,3.3136]
[1726150840473,3.59729659,135.88,135.79,22.68619271]
[1726150840683,17.67,135.89,135.79,22.68619271]
[1726150841376,21.28938848,135.89,135.79,22.68619271]
[1726150841674,21.28938848,135.89,135.81,17.67]
[1726150841868,3.3125,135.87,135.83,3.3133]
[1726150842477,17.67,135.91,135.82,17.67]
[1726150843077,3.3121,135.89,135.82,17.67]
[1726150843270,3.67147573,135.89,135.82,17.67]
[1726150843474,17.67,135.91,135.82,17.67]
[1726150843675,3.62838588,135.89,135.82,17.67]
[1726150843862,3.3124,135.88,135.84,3.313]
[1726150844288,3.62838588,135.89,135.84,3.313]
[1726150844681,17.67,135.91,135.83,3.3133]
[1726150845296,3.3125,135.87,135.83,3.3133]
[1726150845482,3.635221,135.88,135.82,3.3136]
[1726150845780,3.3128,135.86,135.82,3.3136]
[1726150846076,3.59214181,135.88,135.8,17.67]
[1726150846271,3.3127,135.86,135.8,17.67]
[1726150846464,3.71548821,135.87,135.8,17.67]
[1726150846665,17.67,135.89,135.82,3.3135]
[1726150846872,3.3128,135.86,135.82,3.3135]
[1726150847700,3.60281956,135.88,135.79,5.01619271]
[1726150847874,17.67,135.89,135.79,5.01619271]
[1726150848475,21.31238496,135.89,135.79,5.01619271]
[1726150849471,3.3131,135.85,135.81,3.3138]
[1726150849664,17.67,135.87,135.79,1.4038]
[1726150850068,3.3138,135.82,135.79,1.4038]
[1726150850489,17.67,135.85,135.79,1.4038]
[1726150850676,17.67,135.85,135.78,2.8028]
[1726150851180,3.314,135.81,135.78,2.8028]
[1726150851581,17.67,135.85,135.78,2.8028]
[1726150851951,3.3142,135.8,135.78,2.8028]
[1726150852278,3.3142,135.8,135.76,3.3149]
[1726150852578,17.67,135.85,135.75,2.7646]
[1726150852780,3.3137,135.82,135.76,17.67]
[1726150853284,3.3138,135.82,135.78,3.3144]
[1726150853494,3.70572439,135.87,135.8,17.67]
[1726150853669,17.67,135.92,135.82,20.9836]
[1726150853883,3.3128,135.86,135.82,17.67]
[1726150854183,3.69586159,135.89,135.82,17.67]
[1726150854376,3.3132,135.84,135.81,4.2046]
[1726150855379,3.5948804,135.89,135.81,4.2046]
[1726150855781,17.67,135.9,135.81,7.5184]
[1726150855971,3.3131,135.85,135.81,7.5184]
[1726150856674,3.3132,135.84,135.81,7.5184]
[1726150857638,3.313,135.85,135.81,7.5184]
[1726150857777,3.313,135.85,135.82,3.3136]
[1726150858081,3.3128,135.86,135.82,3.3136]
[1726150858280,236.07947,135.91,135.84,3.313]
[1726150858473,236.07947,135.91,135.82,17.67]
[1726150858673,17.67,135.9,135.82,3.3136]
[1726150858873,3.6934768,135.89,135.81,4.2046]
[1726150859279,3.6934768,135.89,135.83,3.3133]
[1726150860288,3.313,135.85,135.82,20.9836]
[1726150860693,3.313,135.85,135.81,7.5184]
[1726150860889,3.3132,135.84,135.81,7.5184]
[1726150861182,17.67,135.9,135.81,7.5184]
[1726150861401,17.67,135.9,135.81,4.2046]
[1726150861402,3.3133,135.84,135.81,4.2046]
[1726150861684,3.77210029,135.87,135.81,4.2046]
[1726150861878,3.3137,135.82,135.81,1.4226]
[1726150862981,3.3142,135.8,135.74,20.4403]
[1726150863181,3.3142,135.8,135.75,7.6002213]
[1726150863395,3.3142,135.8,135.75,1.3365]
[1726150863584,3.3142,135.8,135.77,3.3148]
[1726150864707,0.6057,135.87,135.76,17.67]
[1726150864708,17.67,135.86,135.76,17.67]
[1726150864992,3.3137,135.82,135.79,3.3144]
[1726150865183,17.67,135.86,135.76,17.67]
[1726150865386,21.41558807,135.88,135.78,17.67]
[1726150865582,3.3135,135.83,135.8,3.3139]
[1726150865888,17.67,135.86,135.76,17.67]
[1726150866483,3.3137,135.82,135.76,17.67]
[1726150866879,17.67,135.86,135.76,17.67]
[1726150867086,17.67,135.84,135.75,1.3365]
[1726150867296,3.3143,135.8,135.75,1.3365]
[1726150867691,17.67,135.84,135.75,1.3365]
[1726150867938,17.67,135.82,135.75,1.3365]
[1726150868295,3.3147,135.78,135.75,4.6517]
[1726150868483,3.63103484,135.8,135.75,1.3365]
[1726150868695,17.67,135.82,135.75,1.3365]
[1726150868893,3.315,135.77,135.75,1.3365]
[1726150869399,21.30508651,135.8,135.74,1.3574]
[1726150869631,17.67,135.78,135.7,6.26848015]
[1726150869834,17.67,135.76,135.68,11.08083519]
[1726150870094,17.67,135.74,135.67,6.2730974]
[1726150870336,17.67,135.74,135.66,4.1]
[1726150871010,17.67,135.72,135.66,4.1]
[1726150871488,17.67,135.72,135.66,2.8027]
[1726150872101,3.317,135.69,135.66,1.3803]
[1726150872509,17.67,135.7,135.66,1.3803]
[1726150872987,17.67,135.72,135.66,1.3803]
[1726150873795,21.44424043,135.72,135.66,1.3803]
[1726150874294,3.3164,135.71,135.66,4.6977]
[1726150874498,21.44424043,135.72,135.66,1.3803]
[1726150874895,17.67,135.72,135.68,3.3168]
[1726150875095,21.29208142,135.72,135.68,3.3168]
[1726150875304,21.29208142,135.72,135.66,1.3803]
[1726150875843,17.67,135.72,135.66,1.3803]
[1726150876099,3.63940843,135.73,135.66,1.3803]
[1726150876304,20.986,135.73,135.68,3.317]
[1726150876492,24.75333334,135.73,135.68,3.317]
[1726150876991,24.71951006,135.73,135.68,3.317]
[1726150877198,3.3157,135.74,135.66,1.3803]
[1726150877593,3.3159,135.73,135.69,3.3166]
[1726150877997,17.67,135.77,135.68,17.67]
[1726150878393,17.67,135.75,135.66,1.3803]
[1726150878902,17.67,135.75,135.7,3.3164]
[1726150879092,17.67,135.75,135.66,1.3803]
[1726150879306,3.316,135.73,135.69,3.3167]
[1726150879699,17.67,135.75,135.66,19.0503]
[1726150879905,3.3153,135.76,135.72,3.316]
[1726150880811,17.67,135.79,135.68,3.69730365]
[1726150880998,3.68293016,135.78,135.7,17.67]
[1726150881193,3.68293016,135.78,135.7,21.3857312]
[1726150881398,3.68293016,135.78,135.74,3.3154]
[1726150881804,6.99763016,135.78,135.75,3.3153]
[1726150882108,17.67,135.82,135.72,2.6883]
[1726150882293,17.67,135.82,135.73,17.67]
[1726150882510,17.67,135.82,135.76,3.315]
[1726150883409,17.67,135.79,135.75,3.3153]
[1726150883857,17.67,135.79,135.72,2.6883]
[1726150884009,17.67,135.82,135.72,2.6883]
[1726150884215,3.3144,135.8,135.72,2.6883]
[1726150884404,3.3144,135.8,135.76,3.3151]
[1726150885313,17.67,135.84,135.73,17.67]
[1726150885918,3.314,135.81,135.73,17.67]
[1726150886221,17.67,135.84,135.73,17.67]
[1726150886409,3.3143,135.8,135.76,3.3149]
[1726150886719,17.67,135.87,135.72,2.6883]
[1726150886720,17.67,135.81,135.72,2.6883]
[1726150886910,17.67,135.81,135.75,3.3152]
[1726150887100,17.67,135.79,135.72,2.6883]
[1726150887916,3.315,135.77,135.72,2.6883]
[1726150888411,4.25732486,135.88,135.75,3.3152]
[1726150888610,17.67,135.81,135.75,3.3152]
[1726150888920,3.77376764,135.8,135.75,3.3152]
[1726150889302,17.67,135.81,135.72,2.6883]
[1726150889808,17.67,135.81,135.76,3.315]
[1726150890422,21.376435,135.81,135.75,3.3153]
[1726150890929,3.3149,135.77,135.73,3.3157]
[1726150891509,21.376435,135.81,135.73,3.3157]
[1726150891722,21.376435,135.81,135.74,3.3156]
[1726150892109,3.3148,135.78,135.74,3.3156]
[1726150892918,3.3148,135.78,135.72,2.6883]
[1726150892919,3.3144,135.79,135.75,3.3152]
[1726150893629,3.3142,135.8,135.72,2.6883]
[1726150893819,21.376435,135.81,135.72,2.6883]
[1726150894330,21.376435,135.81,135.76,3.3151]
[1726150894727,3.3145,135.79,135.75,3.3153]
[1726150895625,3.3145,135.79,135.72,2.6883]
[1726150895626,3.3146,135.78,135.74,3.3155]
[1726150895814,21.376435,135.81,135.72,1.3792]
[1726150895815,17.67,135.77,135.72,1.3792]
[1726150896240,17.67,135.77,135.71,1.3631]
[1726150896241,3.3154,135.75,135.71,4.6793]
[1726150897023,3.3156,135.74,135.71,4.6793]
[1726150897722,3.3156,135.74,135.71,1.3631]
[1726150897922,3.3159,135.73,135.7,3.3165]
[1726150898325,3.3159,135.73,135.69,3.3168]
[1726150898827,17.67,135.73,135.68,1.4212]
[1726150899321,3.3161,135.72,135.68,1.4212]
[1726150899719,3.3161,135.72,135.68,4.7382]
[1726150899928,3.3161,135.72,135.68,1.4212]
[1726150900127,20.9859,135.73,135.68,1.4212]
[1726150900523,20.9859,135.73,135.69,3.3166]
[1726150900825,3.3161,135.72,135.68,1.4212]
[1726150901216,3.3161,135.72,135.68,4.7382]
[1726150901417,20.9859,135.73,135.68,1.4212]
[1726150901817,17.67,135.73,135.69,3.3167]
[1726150902120,3.6874497,135.77,135.68,1.4212]
[1726150902121,17.67,135.75,135.68,1.4212]
[1726150902328,17.67,135.75,135.68,5.18613491]
[1726150902538,0.6065,135.79,135.68,20.3873]
[1726150902828,17.67,135.77,135.71,3.3162]
[1726150903131,17.67,135.75,135.68,2.7173]
[1726150903826,17.67,135.74,135.68,2.7173]
[1726150904215,3.316,135.73,135.69,3.3167]
[1726150904428,17.67,135.74,135.69,3.3167]
[1726150904619,3.3159,135.73,135.68,2.7173]
[1726150905013,17.67,135.75,135.68,2.7173]
[1726150905228,3.3159,135.73,135.69,3.3166]
[1726150905428,3.3159,135.73,135.68,2.7173]
[1726150906230,17.67,135.75,135.68,2.7173]
[1726150908835,3.3159,135.73,135.7,3.3164]
[1726150909050,17.67,135.75,135.68,2.7173]
[1726150909442,3.3161,135.72,135.69,3.3167]
[1726150910034,3.3161,135.72,135.68,3.317]
[1726150910228,17.67,135.73,135.67,1.3157]
[1726150910533,17.67,135.73,135.67,4.6328]
[1726150910728,20.9865,135.71,135.67,4.6328]
[1726150910920,17.67,135.73,135.69,3.3168]
[1726150911332,17.67,135.73,135.67,1.3157]
[1726150911524,17.67,135.73,135.69,3.3168]
[1726150911723,17.67,135.73,135.67,1.3157]
[1726150911928,17.67,135.71,135.67,1.3157]
[1726150912432,3.3162,135.72,135.67,1.3157]
[1726150912732,3.3162,135.72,135.68,3.3169]
[1726150913122,3.3164,135.71,135.68,3.3169]
[1726150913734,3.3167,135.7,135.67,4.6329]
[1726150914136,3.3167,135.7,135.67,1.3157]
[1726150915028,3.3167,135.7,135.67,4.633]
[1726150915743,3.70918252,135.72,135.67,1.3157]
[1726150915929,17.67,135.75,135.67,1.3157]
[1726150916134,3.3163,135.72,135.69,3.3167]
[1726150916350,3.70217629,135.72,135.67,1.3157]
[1726150916538,17.67,135.73,135.67,1.3157]
[1726150917033,3.3165,135.71,135.68,3.3169]
[1726150917224,3.76484382,135.72,135.67,1.3157]
[1726150917439,3.3167,135.7,135.67,4.6329]
[1726150917830,3.76484382,135.72,135.67,1.3157]
[1726150918433,3.76484382,135.72,135.68,3.317]
[1726150918434,3.3165,135.71,135.68,3.317]
[1726150919231,3.76484382,135.72,135.67,4.633]
[1726150919839,3.3167,135.7,135.67,4.633]
[1726150921140,17.67,135.75,135.67,1.3157]
[1726150921534,17.67,135.73,135.67,1.3157]
[1726150922434,17.67,135.73,135.68,3.3169]
[1726150922636,17.67,135.73,135.67,1.3157]
[1726150923035,3.316,135.73,135.67,1.3157]
[1726150923843,17.67,135.75,135.68,3.71434389]
[1726150924046,17.67,135.77,135.67,18.9857]
[1726150924242,3.3155,135.75,135.72,3.3161]
[1726150925253,17.67,135.77,135.71,3.3163]
[1726150925950,3.3155,135.75,135.71,3.3163]
[1726150926447,17.67,135.77,135.7,3.77516714]
[1726150926448,3.315,135.77,135.7,3.77516714]
[1726150926755,21.33570462,135.79,135.71,1.3566]
[1726150926949,21.33570462,135.79,135.72,3.316]
[1726150927253,17.67,135.77,135.71,1.3566]
[1726150927632,3.3158,135.74,135.71,1.3566]
[1726150927834,17.67,135.77,135.71,1.3566]
[1726150928166,3.3158,135.74,135.71,1.3566]
[1726150928374,17.67,135.77,135.68,3.60010081]
[1726150928551,17.67,135.79,135.69,19.0071]
[1726150928778,3.69334593,135.8,135.69,19.0071]
[1726150928998,17.67,135.81,135.75,3.3152]
[1726150929145,3.3145,135.79,135.69,22.76235794]
[1726150929755,3.3145,135.79,135.71,17.67]
[1726150929937,3.3145,135.79,135.72,1.3073]
[1726150930133,14.6345,135.79,135.75,3.3151]
[1726150930348,3.3147,135.78,135.75,3.3151]
[1726150931554,11.32,135.77,135.73,1.3237]
[1726150932159,3.315,135.77,135.74,3.3156]
[1726150932746,17.7,135.79,135.73,4.6395]
[1726150932955,17.7,135.79,135.73,1.3237]
[1726150933463,3.3149,135.77,135.74,3.3155]
[1726150933957,3.3147,135.78,135.75,3.3153]
[1726150934455,17.7,135.82,135.73,19.0237]
[1726150935073,17.7,135.84,135.75,17.7]
[1726150935258,17.7,135.86,135.77,17.7]
[1726150935460,17.7,135.86,135.78,1.2878]
[1726150935764,3.3133,135.84,135.79,3.75719017]
[1726150935953,17.7,135.86,135.79,1.3084]
[1726150936660,3.3136,135.83,135.79,4.6228]
[1726150936850,17.7,135.84,135.79,1.3084]
[1726150937157,3.3139,135.81,135.79,1.3084]
[1726150937351,17.7,135.84,135.79,1.3084]
[1726150938268,17.7,135.87,135.79,1.3084]
[1726150938956,3.3134,135.84,135.8,3.3141]
[1726150939188,17.7,135.87,135.79,19.0084]
[1726150939478,21.3672281,135.89,135.79,19.0084]
[1726150939966,17.7,135.87,135.79,19.0084]
[1726150940464,3.3128,135.86,135.82,3.3136]
[1726150941052,17.7,135.87,135.81,3.3138]
[1726150941602,3.3131,135.85,135.81,3.3138]
[1726150942152,3.3131,135.85,135.82,3.3136]
[1726150942365,3.3131,135.85,135.79,19.0084]
[1726150942559,3.3123,135.88,135.79,19.0084]
[1726150942861,3.3123,135.88,135.81,17.7]
[1726150943057,3.3123,135.88,135.82,1.3265]
[1726150943761,3.3123,135.88,135.84,3.313]
[1726150944403,3.312,135.89,135.84,3.64264913]
[1726150944555,3.312,135.89,135.83,17.7]
[1726150944768,236.07947,135.91,135.84,1.3365]
[1726150944956,3.3119,135.9,135.86,3.3125]
[1726150945764,3.312,135.89,135.86,3.3125]
[1726150946265,236.07947,135.91,135.85,1.3662]
[1726150947170,3.3118,135.9,135.87,3.3123]
[1726150947466,236.07947,135.91,135.85,1.3662]
[1726150947683,239.39117,135.91,135.87,3.3122]
[1726150947869,236.07947,135.91,135.85,1.3662]
[1726150948177,3.3121,135.89,135.85,4.679]
[1726150948381,253.77947,135.91,135.85,1.3662]
[1726150948565,3.3127,135.87,135.85,1.3662]
[1726150949558,17.7,135.89,135.82,1.3265]
[1726150949761,17.7,135.88,135.82,1.3265]
[1726150951266,17.7,135.88,135.82,4.64]
[1726150951483,17.7,135.89,135.82,1.3265]
[1726150951795,17.7,135.89,135.83,3.3132]
[1726150952383,3.3128,135.86,135.83,3.3132]
[1726150952569,236.07947,135.91,135.86,3.3125]
[1726150953669,236.07947,135.91,135.84,1.4026]